[Event "41st Arco Open 2019"]
[Site "Arco"]
[Date "2019.10.10"]
[Round "7"]
[White "Pasini, Nicolo"]
[Black "Sedina, Elena"]
[Result "0-1"]
[ECO "D17"]
[WhiteElo "2234"]
[BlackElo "2294"]
[Annotator "NA"]
[PlyCount "96"]
[EventDate "2019.10.04"]
[EventType "swiss"]
[EventCountry "ITA"]
[SourceTitle "playchess.com"]
[Source "ChessBase"]
[SourceQuality "1"]
[TimeControl "40/5400+30:1800+30"]

1. d4 {[%emt 0:00:30]} d5 {[%emt 0:03:30]} 2. c4 {[%emt 0:00:00]} c6 {[%emt 0:00:00]} 3. Nf3 {[%emt 0:00:00]} Nf6 {[%emt 0:04:00]} 4. Nc3 {[%emt 0:00:30]} dxc4 {[%emt 0:00:30]} 5. a4 {[%emt 0:00:30]} Bf5 {[%emt 0:00:30]} 6. Ne5 Nbd7 {[%emt 0:00:30]} 7. Nxc4 {[%emt 0:01:00]} Qc7 {[%emt 0:15:30]} 8. g3 e5 {[%emt 0:00:00]} 9. dxe5 {[%emt 0:01:00]} Nxe5 {[%emt 0:00:00]} 10. Bf4 {[%emt 0:00:00]} Nfd7 {[%emt 0:00:30]} 11. Bg2 {[%emt 0:00:00]} f6 12. O-O {[%emt 0:01:30]} Rd8 {[%emt 0:29:00]} 13. a5 Nc5 {[%emt 0:38:54]} 14. Bxe5 {[%emt 0:33:00]} fxe5 {[%emt 0:00:00]} 15. Qc1 Nb3 {[%emt 0:00:00]} 16. Qg5 {[%emt 0:13:00]} Be6 {[%emt 0:00:00]} 17. Ra4 {[%emt 0:07:30]} Nc5 {[%emt 0:02:00]} 18. Rb4 {[%emt 0:36:29]} Nd7 {[%emt 0:00:05]} 19. Ra4 {[%emt 0:00:00]} Nc5 {[%emt 0:00:55]} 20. Qxe5 {[%emt 0:00:00]} Qxe5 {[%emt 0:00:00]} 21. Nxe5 {[%emt 0:00:00]} Nxa4 {[%emt 0:00:00]} 22. Nxa4 {[%emt 0:00:00]} Bd5 {[%emt 0:01:56]} 23. e4 Bb3 {[%emt 0:00:01]} 24. Nc3 {[%emt 0:00:00]} Bd6 {[%emt 0:00:00]} 25. Nd3 {[%emt 0:00:00]} Bc4 {[%emt 0:00:59]} 26. Rd1 {[%emt 0:07:16]} O-O {[%emt 0:03:25]} 27. Bf1 {[%emt 0:00:00]} Bc7 {[%emt 0:00:00]} 28. Nc5 {[%emt 0:00:00]} Rxd1 {[%emt 0:00:58]} 29. Nxd1 {[%emt 0:01:06]} Bxf1 {[%emt 0:00:08]} 30. Kxf1 {[%emt 0:00:00]} Bxa5 {[%emt 0:00:00]} 31. f4 {[%emt 0:00:00]} Rd8 {[%emt 0:00:00]} 32. Nf2 {[%emt 0:01:18]} Bb6 {[%emt 0:01:18]} 33. Nfd3 {[%emt 0:00:00]} Bxc5 {[%emt 0:00:00]} 34. Nxc5 {[%emt 0:00:00]} b6 {[%emt 0:00:09]} 35. Na6 {[%emt 0:01:30]} Rd2 {[%emt 0:01:21]} 36. b4 {[%emt 0:00:00]} Rxh2 {[%emt 0:00:00]} 37. e5 {[%emt 0:00:00]} Kf7 {[%emt 0:00:43]} 38. f5 {[%emt 0:01:28]} Rc2 {[%emt 0:00:45]} 39. Nc7 {[%emt 0:00:00]} a5 {[%emt 0:00:00]} 40. b5 {[%emt 0:00:00]} a4 {[%emt 0:01:13]} 41. bxc6 {[%emt 0:31:52]} Rxc6 {[%emt 0:30:39]} 42. e6+ {[%emt 0:00:00]} Ke7 {[%emt 0:00:00]} 43. Nd5+ {[%emt 0:00:00]} Ke8 {[%emt 0:00:29]} 44. g4 {[%emt 0:00:49]} a3 {[%emt 0:00:20]} 45. Nb4 {[%emt 0:00:00]} Rc4 {[%emt 0:00:00]} 46. Na2 {[%emt 0:00:00]} Rc2 {[%emt 0:01:19]} 47. g5 {[%emt 0:01:12]} Rxa2 {[%emt 0:00:00]} 48. f6 {[%emt 0:00:00]} gxf6 {[%emt 0:00:23]} 0-1

[Event "41st Arco Open 2019"]
[Site "Arco"]
[Date "2019.10.10"]
[Round "7"]
[White "Pedersen, Henrik Bolding"]
[Black "Okhotnik, Vladimir"]
[Result "0-1"]
[ECO "A45"]
[WhiteElo "2147"]
[BlackElo "2352"]
[Annotator "NA"]
[PlyCount "88"]
[EventDate "2019.10.04"]
[EventType "swiss"]
[EventCountry "ITA"]
[SourceTitle "playchess.com"]
[Source "ChessBase"]
[SourceQuality "1"]
[TimeControl "40/5400+30:1800+30"]

1. d4 {[%emt 0:00:30]} Nf6 {[%emt 0:00:30]} 2. Bf4 {[%emt 0:00:30]} c5 {[%emt 0:00:00]} 3. e3 {[%emt 0:00:00]} cxd4 {[%emt 0:00:00]} 4. exd4 {[%emt 0:00:00]} Qb6 {[%emt 0:00:30]} 5. Nc3 {[%emt 0:05:30]} d5 {[%emt 0:01:30]} 6. Nb5 Na6 {[%emt 0:00:30]} 7. a4 {[%emt 0:05:00]} g6 $14 {[%emt 0:00:30]} 8. Bd3 {[%emt 0:00:00]} Bg7 {[%emt 0:00:30]} 9. c3 {[%emt 0:09:00]} Nh5 {[%emt 0:04:30]} 10. Be3 {[%emt 0:05:30]} O-O {[%emt 0:03:30]} 11. Ne2 {[%emt 0:05:30]} Nc7 12. a5 {[%emt 0:09:30]} Qc6 {[%emt 0:02:00]} 13. Na3 {[%emt 0:03:30]} f6 14. Ng3 {[%emt 0:09:30]} Nxg3 {[%emt 0:07:00]} 15. hxg3 {[%emt 0:00:00]} e5 {[%emt 0:01:30]} 16. Nc2 {[%emt 0:02:00]} e4 {[%emt 0:06:30]} 17. Be2 {[%emt 0:01:30]} g5 {[%emt 0:04:30]} 18. Nb4 {[%emt 0:04:30]} Qd6 {[%emt 0:00:30]} 19. Qb3 {[%emt 0:05:30]} Be6 {[%emt 0:00:30]} 20. O-O {[%emt 0:05:30]} h6 {[%emt 0:41:30]} 21. c4 {[%emt 0:03:30]} f5 {[%emt 0:00:00]} 22. Nxd5 {[%emt 0:03:30]} Nxd5 {[%emt 0:00:00]} 23. cxd5 {[%emt 0:00:00]} Qxd5 {[%emt 0:00:00]} 24. Qxd5 {[%emt 0:00:00]} Bxd5 {[%emt 0:00:00]} 25. Rfd1 {[%emt 0:07:48]} Rac8 26. Rac1 {[%emt 0:04:03]} Bb3 {[%emt 0:00:00]} 27. Re1 {[%emt 0:00:52]} Bc2 {[%emt 0:00:00]} 28. Bd1 {[%emt 0:05:22]} Bxd1 {[%emt 0:00:00]} 29. Rexd1 {[%emt 0:00:35]} a6 {[%emt 0:05:30]} 30. b4 {[%emt 0:01:30]} Rxc1 {[%emt 0:19:51]} 31. Bxc1 {[%emt 0:01:41]} Rd8 {[%emt 0:00:00]} 32. Be3 {[%emt 0:00:00]} Bf8 {[%emt 0:00:00]} 33. Rb1 {[%emt 0:01:33]} Rd5 {[%emt 0:02:34]} 34. f3 {[%emt 0:01:01]} Bd6 {[%emt 0:00:00]} 35. fxe4 {[%emt 0:00:00]} fxe4 {[%emt 0:00:00]} 36. g4 {[%emt 0:01:02]} Rb5 {[%emt 0:02:01]} 37. Bd2 {[%emt 0:00:59]} Kf7 {[%emt 0:00:00]} 38. Bc3 {[%emt 0:00:00]} Ke6 {[%emt 0:00:00]} 39. d5+ {[%emt 0:02:17]} Kxd5 {[%emt 0:02:55]} 40. Rd1+ {[%emt 0:00:38]} Kc4 {[%emt 0:00:00]} 41. Bg7 {[%emt 0:00:00]} Bxb4 {[%emt 0:00:00]} 42. Rd4+ {[%emt 0:05:39]} Kb3 {[%emt 0:00:00]} 43. Rxe4 {[%emt 0:00:30]} Bxa5 {[%emt 0:00:00]} 44. Bxh6 {[%emt 0:00:30]} Bc3 {[%emt 0:00:00]} 0-1

[Event "41st Arco Open 2019"]
[Site "Arco"]
[Date "2019.10.10"]
[Round "7"]
[White "Heidel, Andre Nicolas"]
[Black "Favaloro, Andrea"]
[Result "1/2-1/2"]
[ECO "D35"]
[WhiteElo "2140"]
[BlackElo "2338"]
[Annotator "NA"]
[PlyCount "63"]
[EventDate "2019.10.04"]
[EventType "swiss"]
[EventCountry "ITA"]
[SourceTitle "playchess.com"]
[Source "ChessBase"]
[SourceQuality "1"]
[TimeControl "40/5400+30:1800+30"]

1. d4 {[%emt 0:00:30]} d5 {[%emt 0:00:30]} 2. c4 {[%emt 0:00:00]} e6 {[%emt 0:00:00]} 3. Nc3 {[%emt 0:00:00]} Nf6 {[%emt 0:01:00]} 4. cxd5 {[%emt 0:00:00]} exd5 {[%emt 0:00:30]} 5. Bg5 {[%emt 0:00:00]} c6 {[%emt 0:00:00]} 6. e3 h6 {[%emt 0:00:00]} 7. Bf4 {[%emt 0:01:00]} Bf5 {[%emt 0:01:30]} 8. Bd3 {[%emt 0:02:30]} Bxd3 {[%emt 0:00:30]} 9. Qxd3 {[%emt 0:00:30]} Be7 {[%emt 0:12:30]} 10. h3 {[%emt 0:01:30]} Nbd7 {[%emt 0:00:30]} 11. Nf3 {[%emt 0:00:30]} O-O 12. O-O {[%emt 0:00:30]} Re8 {[%emt 0:00:00]} 13. Ne5 {[%emt 0:01:30]} Nxe5 14. Bxe5 {[%emt 0:00:30]} Nd7 $11 {[%emt 0:06:00]} 15. Bg3 {[%emt 0:14:30]} Nb6 {[%emt 0:00:30]} 16. Qc2 {[%emt 0:00:00]} Bd6 {[%emt 0:02:30]} 17. Bxd6 {[%emt 0:00:00]} Qxd6 {[%emt 0:00:00]} 18. Na4 {[%emt 0:00:00]} Nxa4 {[%emt 0:00:00]} 19. Qxa4 {[%emt 0:00:00]} f5 {[%emt 0:00:30]} 20. Rac1 {[%emt 0:00:00]} f4 {[%emt 0:02:30]} 21. exf4 {[%emt 0:00:00]} Qxf4 {[%emt 0:00:30]} 22. Rc3 {[%emt 0:14:30]} Re7 {[%emt 0:08:30]} 23. Rf3 {[%emt 0:00:00]} Qd2 {[%emt 0:01:30]} 24. Qa3 {[%emt 0:00:00]} Re2 {[%emt 0:02:30]} 25. Re3 {[%emt 0:01:30]} Qxb2 26. Qe7 {[%emt 0:00:30]} Rd2 {[%emt 0:08:00]} 27. Rf3 {[%emt 0:09:30]} Kh7 28. Re1 {[%emt 0:05:30]} Qxd4 {[%emt 0:27:00]} 29. Qxb7 {[%emt 0:21:30]} Rg8 {[%emt 0:00:00]} 30. Qxc6 {[%emt 0:00:00]} Rxa2 {[%emt 0:01:00]} 31. Re7 {[%emt 0:00:00]} a5 {[%emt 0:11:13]} 32. Rd7 {[%emt 0:13:19]} 1/2-1/2

[Event "41st Arco Open 2019"]
[Site "Arco"]
[Date "2019.10.10"]
[Round "7"]
[White "Voltolini, Giuseppe"]
[Black "Qendro, Llambi"]
[Result "0-1"]
[ECO "E68"]
[WhiteElo "2136"]
[BlackElo "2312"]
[Annotator "NA"]
[PlyCount "66"]
[EventDate "2019.10.04"]
[EventType "swiss"]
[EventCountry "ITA"]
[SourceTitle "playchess.com"]
[Source "ChessBase"]
[SourceQuality "1"]
[TimeControl "40/5400+30:1800+30"]

1. d4 {[%emt 0:00:30]} g6 {[%emt 0:00:30]} 2. c4 {[%emt 0:00:00]} Bg7 {[%emt 0:00:00]} 3. Nf3 {[%emt 0:00:00]} d6 {[%emt 0:00:00]} 4. g3 {[%emt 0:00:30]} Nf6 5. Bg2 {[%emt 0:00:30]} O-O {[%emt 0:01:00]} 6. Nc3 Nbd7 {[%emt 0:00:30]} 7. O-O {[%emt 0:02:00]} e5 {[%emt 0:02:30]} 8. e4 {[%emt 0:01:30]} exd4 {[%emt 0:00:30]} 9. Nxd4 {[%emt 0:00:30]} Nc5 {[%emt 0:02:30]} 10. h3 {[%emt 0:09:30]} Re8 {[%emt 0:00:00]} 11. Re1 {[%emt 0:00:30]} a5 {[%emt 0:00:00]} 12. Qc2 {[%emt 0:03:30]} Nfd7 {[%emt 0:07:30]} 13. Be3 $14 {[%emt 0:03:30]} Ne5 14. b3 {[%emt 0:11:30]} Ned3 {[%emt 0:01:00]} 15. Red1 {[%emt 0:00:00]} Nb4 {[%emt 0:00:30]} 16. Qe2 {[%emt 0:13:00]} Bd7 {[%emt 0:15:30]} 17. Rac1 {[%emt 0:00:30]} Qc8 {[%emt 0:04:30]} 18. Kh2 {[%emt 0:03:30]} a4 {[%emt 0:41:30]} 19. Rb1 {[%emt 0:27:30]} axb3 {[%emt 0:00:00]} 20. axb3 {[%emt 0:00:30]} h5 {[%emt 0:00:00]} 21. Nd5 {[%emt 0:07:52]} Nxd5 {[%emt 0:00:30]} 22. exd5 Ne4 {[%emt 0:00:30]} 23. Qc2 {[%emt 0:01:59]} Bf5 {[%emt 0:11:32]} 24. Nxf5 {[%emt 0:02:11]} Qxf5 {[%emt 0:00:00]} 25. Bxe4 Rxe4 {[%emt 0:00:00]} 26. Re1 {[%emt 0:03:16]} h4 {[%emt 0:07:15]} 27. g4 {[%emt 0:03:59]} Qf3 {[%emt 0:00:00]} 28. Qe2 {[%emt 0:00:00]} Be5+ {[%emt 0:00:00]} 29. Kg1 {[%emt 0:02:03]} Qxh3 {[%emt 0:02:12]} 30. f3 {[%emt 0:00:09]} Rxe3 {[%emt 0:00:00]} 31. Qxe3 {[%emt 0:00:00]} Ra2 {[%emt 0:00:00]} 32. Re2 {[%emt 0:01:29]} Rxe2 {[%emt 0:02:13]} 33. Qxe2 {[%emt 0:00:44]} Bd4+ {[%emt 0:00:00]} 0-1

[Event "41st Arco Open 2019"]
[Site "Arco"]
[Date "2019.10.10"]
[Round "7"]
[White "Perman, Sergey"]
[Black "Welling, Gerard"]
[Result "1-0"]
[ECO "C63"]
[WhiteElo "2129"]
[BlackElo "2302"]
[Annotator "NA"]
[PlyCount "79"]
[EventDate "2019.10.04"]
[EventType "swiss"]
[EventCountry "ITA"]
[SourceTitle "playchess.com"]
[Source "ChessBase"]
[SourceQuality "1"]
[TimeControl "40/5400+30:1800+30"]

1. e4 {[%emt 0:00:30]} Nc6 {[%emt 0:00:30]} 2. Nf3 {[%emt 0:00:30]} e5 {[%emt 0:00:30]} 3. Bb5 {[%emt 0:00:30]} f5 {[%emt 0:00:00]} 4. d3 {[%emt 0:00:00]} fxe4 5. dxe4 {[%emt 0:00:00]} Nf6 {[%emt 0:00:00]} 6. Nc3 Bb4 {[%emt 0:00:00]} 7. Qd3 {[%emt 0:02:00]} Bxc3+ {[%emt 0:04:30]} 8. bxc3 d6 {[%emt 0:00:00]} 9. O-O {[%emt 0:00:00]} Bd7 {[%emt 0:20:00]} 10. Bc4 {[%emt 0:00:30]} Qe7 {[%emt 0:01:30]} 11. Rb1 {[%emt 0:18:30]} Nd8 {[%emt 0:00:00]} 12. Bg5 {[%emt 0:03:30]} h6 {[%emt 0:10:00]} 13. Nh4 {[%emt 0:04:30]} hxg5 {[%emt 0:14:30]} 14. Ng6 {[%emt 0:00:00]} d5 {[%emt 0:00:30]} 15. Nxe7 {[%emt 0:22:00]} dxc4 {[%emt 0:00:30]} 16. Qxc4 {[%emt 0:00:00]} Kxe7 {[%emt 0:00:30]} 17. Qxc7 {[%emt 0:00:00]} Ne6 {[%emt 0:02:30]} 18. Qxb7 {[%emt 0:00:00]} Rac8 {[%emt 0:02:30]} 19. Qb4+ {[%emt 0:06:00]} Kf7 {[%emt 0:02:30]} 20. Rfd1 {[%emt 0:01:30]} Nc5 {[%emt 0:00:30]} 21. Qa5 {[%emt 0:16:30]} a6 {[%emt 0:16:30]} 22. f3 {[%emt 0:04:41]} g4 {[%emt 0:03:41]} 23. f4 {[%emt 0:03:42]} Rhe8 {[%emt 0:04:05]} 24. f5 {[%emt 0:00:53]} Bb5 {[%emt 0:00:00]} 25. Re1 {[%emt 0:00:00]} Re7 {[%emt 0:00:28]} 26. Re3 {[%emt 0:03:12]} Rec7 {[%emt 0:06:14]} 27. Rbe1 {[%emt 0:03:30]} Na4 {[%emt 0:00:00]} 28. Qb4 {[%emt 0:00:00]} Nxc3 {[%emt 0:00:00]} 29. Qd6 {[%emt 0:01:36]} Re7 {[%emt 0:00:00]} 30. h3 {[%emt 0:00:58]} Rc6 {[%emt 0:05:08]} 31. Qa3 {[%emt 0:03:40]} Rec7 {[%emt 0:00:00]} 32. Qb3+ {[%emt 0:00:00]} Kf8 {[%emt 0:02:35]} 33. hxg4 {[%emt 0:01:29]} Nxg4 {[%emt 0:02:41]} 34. Rh3 {[%emt 0:02:41]} Ne2+ {[%emt 0:00:30]} 35. Rxe2 {[%emt 0:00:00]} Bxe2 {[%emt 0:00:00]} 36. Rh8+ {[%emt 0:00:00]} Ke7 {[%emt 0:00:03]} 37. Qb4+ {[%emt 0:01:08]} Rd6 {[%emt 0:01:05]} 38. Rh7 {[%emt 0:02:01]} Rb7 {[%emt 0:02:03]} 39. Rxg7+ {[%emt 0:00:32]} Ke8 {[%emt 0:01:23]} 40. Rg8+ {[%emt 0:00:30]} 1-0

[Event "41st Arco Open 2019"]
[Site "Arco"]
[Date "2019.10.10"]
[Round "7"]
[White "Klings, Peter"]
[Black "Curien, Nicolas"]
[Result "1/2-1/2"]
[ECO "C02"]
[WhiteElo "2116"]
[BlackElo "2261"]
[Annotator "NA"]
[PlyCount "91"]
[EventDate "2019.10.04"]
[EventType "swiss"]
[EventCountry "ITA"]
[SourceTitle "playchess.com"]
[Source "ChessBase"]
[SourceQuality "1"]
[TimeControl "40/5400+30:1800+30"]

1. e4 {[%emt 0:00:30]} e6 {[%emt 0:00:30]} 2. d4 {[%emt 0:00:00]} d5 {[%emt 0:00:30]} 3. e5 {[%emt 0:01:00]} c5 {[%emt 0:00:00]} 4. c3 {[%emt 0:00:30]} Nc6 5. Nf3 {[%emt 0:00:30]} Bd7 {[%emt 0:00:00]} 6. Be2 Nge7 {[%emt 0:00:00]} 7. a3 {[%emt 0:03:00]} cxd4 {[%emt 0:04:30]} 8. cxd4 Nf5 {[%emt 0:00:30]} 9. b4 {[%emt 0:02:00]} Rc8 {[%emt 0:03:30]} 10. Bb2 {[%emt 0:00:30]} Qb6 $11 {[%emt 0:01:30]} 11. O-O {[%emt 0:03:30]} Be7 {[%emt 0:02:30]} 12. Qd2 {[%emt 0:02:30]} O-O {[%emt 0:16:30]} 13. Bd3 {[%emt 0:01:30]} Kh8 {[%emt 0:06:30]} 14. Bxf5 {[%emt 0:07:30]} exf5 {[%emt 0:00:30]} 15. Nc3 {[%emt 0:15:30]} Be6 {[%emt 0:01:30]} 16. Na4 {[%emt 0:00:00]} Qd8 {[%emt 0:00:30]} 17. Nc5 {[%emt 0:00:00]} b6 {[%emt 0:01:30]} 18. Nb3 {[%emt 0:07:30]} g5 {[%emt 0:10:30]} 19. Ne1 {[%emt 0:01:30]} f4 {[%emt 0:05:30]} 20. Nd3 {[%emt 0:01:30]} Qd7 {[%emt 0:00:00]} 21. Rfc1 {[%emt 0:06:30]} Bf5 {[%emt 0:02:00]} 22. Rc3 {[%emt 0:10:30]} Nd8 {[%emt 0:00:30]} 23. Rxc8 {[%emt 0:03:30]} Qxc8 {[%emt 0:10:30]} 24. Rc1 Qd7 {[%emt 0:00:00]} 25. Rc3 {[%emt 0:04:00]} Ne6 {[%emt 0:01:00]} 26. Ndc1 {[%emt 0:03:30]} Rg8 {[%emt 0:04:30]} 27. Ne2 {[%emt 0:00:00]} Be4 28. f3 {[%emt 0:03:00]} Bf5 {[%emt 0:00:00]} 29. Qe1 g4 {[%emt 0:00:00]} 30. Nd2 {[%emt 0:05:59]} a5 {[%emt 0:07:00]} 31. bxa5 bxa5 {[%emt 0:00:30]} 32. fxg4 {[%emt 0:03:48]} Bxg4 {[%emt 0:07:15]} 33. Nf3 {[%emt 0:00:28]} Bh3 {[%emt 0:00:00]} 34. g3 {[%emt 0:04:28]} fxg3 {[%emt 0:00:00]} 35. hxg3 {[%emt 0:00:15]} Bg4 {[%emt 0:00:00]} 36. Bc1 {[%emt 0:00:30]} a4 {[%emt 0:02:40]} 37. Bd2 {[%emt 0:04:17]} Rc8 {[%emt 0:00:00]} 38. Qc1 {[%emt 0:04:55]} Rc4 {[%emt 0:06:18]} 39. Kf2 Qc6 {[%emt 0:07:49]} 40. Be3 {[%emt 0:03:02]} Kg8 {[%emt 0:00:00]} 41. Qb2 {[%emt 0:06:48]} Kg7 {[%emt 0:06:58]} 42. Qc1 {[%emt 0:00:00]} h5 {[%emt 0:05:30]} 43. Bh6+ {[%emt 0:02:00]} Kg8 {[%emt 0:00:00]} 44. Be3 {[%emt 0:05:30]} Kg7 {[%emt 0:00:00]} 45. Bh6+ {[%emt 0:00:00]} Kg8 {[%emt 0:00:00]} 46. Be3 {[%emt 0:00:00]} 1/2-1/2

[Event "41st Arco Open 2019"]
[Site "Arco"]
[Date "2019.10.10"]
[Round "7"]
[White "Lezzerini, Marco"]
[Black "Zwahr, Paul"]
[Result "1-0"]
[ECO "E68"]
[WhiteElo "2116"]
[BlackElo "2282"]
[Annotator "NA"]
[PlyCount "119"]
[EventDate "2019.10.04"]
[EventType "swiss"]
[EventCountry "ITA"]
[SourceTitle "playchess.com"]
[Source "ChessBase"]
[SourceQuality "1"]
[TimeControl "40/5400+30:1800+30"]

1. d4 {[%emt 0:00:30]} Nf6 {[%emt 0:00:30]} 2. c4 {[%emt 0:00:00]} g6 {[%emt 0:00:00]} 3. g3 {[%emt 0:00:00]} Bg7 {[%emt 0:00:00]} 4. Bg2 {[%emt 0:00:00]} O-O 5. Nc3 {[%emt 0:00:00]} d6 {[%emt 0:00:00]} 6. Nf3 {[%emt 0:00:30]} Nbd7 {[%emt 0:00:30]} 7. O-O {[%emt 0:00:30]} e5 {[%emt 0:00:30]} 8. e4 {[%emt 0:00:30]} c6 {[%emt 0:00:30]} 9. b3 {[%emt 0:00:00]} Qb6 {[%emt 0:00:30]} 10. Rb1 exd4 {[%emt 0:05:30]} 11. Nxd4 {[%emt 0:00:30]} Nxe4 12. Nxe4 $16 {[%emt 0:01:30]} Qxd4 {[%emt 0:08:00]} 13. Qxd4 {[%emt 0:24:30]} Bxd4 {[%emt 0:00:30]} 14. Nxd6 {[%emt 0:00:30]} Ne5 {[%emt 0:28:30]} 15. Rd1 {[%emt 0:27:30]} Bc5 {[%emt 0:11:30]} 16. Bb2 {[%emt 0:00:00]} f6 {[%emt 0:09:30]} 17. h3 {[%emt 0:00:00]} Bxd6 {[%emt 0:17:46]} 18. Rxd6 {[%emt 0:00:00]} Bf5 {[%emt 0:00:00]} 19. Rbd1 {[%emt 0:00:00]} g5 {[%emt 0:00:48]} 20. g4 Bg6 {[%emt 0:00:30]} 21. Bxe5 {[%emt 0:07:00]} fxe5 {[%emt 0:06:45]} 22. Rd7 {[%emt 0:00:30]} Rab8 {[%emt 0:01:18]} 23. Re7 {[%emt 0:06:30]} Rfe8 24. Rdd7 {[%emt 0:00:00]} Rxe7 {[%emt 0:04:13]} 25. Rxe7 Bb1 {[%emt 0:04:25]} 26. a3 {[%emt 0:01:30]} Ba2 {[%emt 0:00:00]} 27. Rxe5 {[%emt 0:01:30]} h6 {[%emt 0:00:49]} 28. Re3 {[%emt 0:29:51]} Bb1 {[%emt 0:00:41]} 29. c5 {[%emt 0:00:00]} Kf7 {[%emt 0:00:25]} 30. Bf1 {[%emt 0:00:00]} Re8 {[%emt 0:00:48]} 31. Bc4+ {[%emt 0:00:00]} Kf8 32. Rxe8+ {[%emt 0:00:00]} Kxe8 {[%emt 0:00:03]} 33. Kg2 Ke7 {[%emt 0:00:39]} 34. Kg3 {[%emt 0:00:00]} Kf6 {[%emt 0:00:00]} 35. f4 {[%emt 0:00:00]} Be4 {[%emt 0:01:02]} 36. b4 {[%emt 0:03:49]} Bh1 {[%emt 0:00:58]} 37. Be2 {[%emt 0:00:00]} Bd5 {[%emt 0:00:00]} 38. Bf3 {[%emt 0:00:00]} Bc4 {[%emt 0:00:26]} 39. Be4 {[%emt 0:00:45]} Bb5 {[%emt 0:00:19]} 40. h4 {[%emt 0:00:00]} Be2 {[%emt 0:00:00]} 41. fxg5+ {[%emt 0:27:50]} hxg5 {[%emt 0:30:59]} 42. h5 {[%emt 0:00:00]} Bc4 {[%emt 0:00:42]} 43. h6 {[%emt 0:00:00]} Bb5 {[%emt 0:00:19]} 44. Bf5 {[%emt 0:00:00]} b6 {[%emt 0:00:00]} 45. Kf3 {[%emt 0:00:00]} bxc5 46. bxc5 {[%emt 0:00:00]} a5 {[%emt 0:00:00]} 47. Ke4 {[%emt 0:00:00]} Bc4 {[%emt 0:02:11]} 48. h7 {[%emt 0:00:00]} Bd5+ {[%emt 0:00:00]} 49. Kd4 {[%emt 0:00:00]} Kg7 {[%emt 0:00:00]} 50. Ke5 {[%emt 0:00:00]} Bf3 {[%emt 0:00:00]} 51. Kd6 {[%emt 0:00:00]} Kh8 {[%emt 0:00:00]} 52. Kc7 {[%emt 0:03:18]} a4 {[%emt 0:00:00]} 53. Kd6 {[%emt 0:00:14]} Kg7 {[%emt 0:00:00]} 54. Bd7 {[%emt 0:00:00]} Kxh7 {[%emt 0:00:00]} 55. Bxc6 {[%emt 0:01:04]} Bxg4 56. Bxa4 {[%emt 0:00:39]} Bf3 {[%emt 0:00:00]} 57. c6 {[%emt 0:03:22]} g4 {[%emt 0:00:00]} 58. c7 {[%emt 0:00:13]} Bb7 {[%emt 0:00:00]} 59. Bc6 {[%emt 0:00:00]} Bc8 {[%emt 0:00:00]} 60. Ke7 {[%emt 0:01:38]} 1-0

[Event "41st Arco Open 2019"]
[Site "Arco"]
[Date "2019.10.10"]
[Round "7"]
[White "Astengo, Corrado"]
[Black "Bifulco, Michel"]
[Result "0-1"]
[ECO "C56"]
[WhiteElo "2105"]
[BlackElo "2261"]
[Annotator "NA"]
[PlyCount "106"]
[EventDate "2019.10.04"]
[EventType "swiss"]
[EventCountry "ITA"]
[SourceTitle "playchess.com"]
[Source "ChessBase"]
[SourceQuality "1"]
[TimeControl "40/5400+30:1800+30"]

1. e4 {[%emt 0:00:30]} e5 {[%emt 0:00:30]} 2. Nf3 {[%emt 0:00:00]} Nc6 {[%emt 0:00:00]} 3. d4 {[%emt 0:00:00]} exd4 {[%emt 0:00:00]} 4. Bc4 {[%emt 0:00:30]} Nf6 {[%emt 0:00:00]} 5. e5 {[%emt 0:00:30]} Ng4 {[%emt 0:00:00]} 6. Qe2 Qe7 {[%emt 0:00:30]} 7. Bf4 {[%emt 0:01:00]} f6 {[%emt 0:00:30]} 8. exf6 Nxf6 $11 {[%emt 0:00:00]} 9. Qxe7+ {[%emt 0:02:00]} Bxe7 10. O-O {[%emt 0:01:30]} d6 {[%emt 0:06:30]} 11. Nbd2 {[%emt 0:05:30]} Bd7 12. Rfe1 {[%emt 0:05:30]} O-O-O {[%emt 0:11:00]} 13. Nb3 {[%emt 0:06:30]} Nh5 {[%emt 0:04:30]} 14. Bg5 {[%emt 0:03:30]} Bxg5 {[%emt 0:01:30]} 15. Nxg5 {[%emt 0:00:30]} Ne5 {[%emt 0:02:30]} 16. Be2 {[%emt 0:01:30]} Nf4 {[%emt 0:01:30]} 17. Nxd4 {[%emt 0:00:30]} h6 {[%emt 0:05:30]} 18. Ne4 {[%emt 0:04:30]} Rhe8 {[%emt 0:00:30]} 19. Bb5 {[%emt 0:06:30]} Bxb5 {[%emt 0:08:30]} 20. Nxb5 d5 {[%emt 0:11:30]} 21. Nd2 {[%emt 0:06:00]} Ng4 {[%emt 0:00:00]} 22. Nf3 {[%emt 0:05:30]} a6 {[%emt 0:29:58]} 23. Nbd4 {[%emt 0:00:30]} g6 24. Rad1 {[%emt 0:05:30]} c5 {[%emt 0:11:10]} 25. Nb3 b6 {[%emt 0:01:52]} 26. h3 {[%emt 0:07:00]} Nf6 {[%emt 0:00:00]} 27. Ne5 {[%emt 0:05:30]} Re7 {[%emt 0:00:46]} 28. Nc6 {[%emt 0:28:19]} Rxe1+ {[%emt 0:00:03]} 29. Rxe1 {[%emt 0:00:00]} Rd6 {[%emt 0:00:40]} 30. Ne5 {[%emt 0:00:00]} Re6 {[%emt 0:00:17]} 31. Nd3 {[%emt 0:00:00]} Rxe1+ {[%emt 0:00:33]} 32. Nxe1 {[%emt 0:00:00]} d4 {[%emt 0:01:58]} 33. f3 Kd7 {[%emt 0:00:55]} 34. h4 {[%emt 0:00:00]} Ke6 {[%emt 0:00:00]} 35. Kf2 {[%emt 0:00:00]} Kd5 {[%emt 0:00:54]} 36. Nd3 {[%emt 0:05:46]} Ne6 {[%emt 0:00:29]} 37. Nd2 {[%emt 0:00:00]} a5 {[%emt 0:00:00]} 38. c4+ {[%emt 0:00:00]} dxc3 {[%emt 0:00:41]} 39. bxc3 {[%emt 0:02:00]} b5 {[%emt 0:01:19]} 40. Ke3 {[%emt 0:00:00]} Nd7 {[%emt 0:00:00]} 41. Nf4+ {[%emt 0:30:11]} Nxf4 {[%emt 0:31:35]} 42. Kxf4 b4 {[%emt 0:00:00]} 43. cxb4 {[%emt 0:00:00]} cxb4 {[%emt 0:00:00]} 44. Ke3 {[%emt 0:00:00]} Nc5 {[%emt 0:00:00]} 45. g4 {[%emt 0:00:00]} a4 {[%emt 0:00:00]} 46. h5 {[%emt 0:00:00]} gxh5 {[%emt 0:00:00]} 47. gxh5 a3 {[%emt 0:00:00]} 48. Nb1 {[%emt 0:00:00]} Ke5 {[%emt 0:00:00]} 49. f4+ {[%emt 0:00:00]} Kf5 {[%emt 0:00:00]} 50. Kf3 {[%emt 0:00:00]} Ne4 51. Ke3 {[%emt 0:00:00]} b3 {[%emt 0:00:33]} 52. Nxa3 bxa2 {[%emt 0:00:03]} 53. Nc2 {[%emt 0:01:08]} Nf6 {[%emt 0:00:00]} 0-1